Cogmind - Beta 14 @@@ ROGUE MODE // 2024.12.04 @ 19:14:31 Player: Dadrick Result: Destroyed by S-10 Pest with Light Assault Rifle Performance ------------- Evolutions (0) 0 Regions Visited (2) 400 Robots Destroyed (26) 130 Value Destroyed (541) 541 Prototype IDs (0) 0 Alien Tech Used (0) 0 Bonus (0) 0 TOTAL SCORE: 1071 Bonus ------- None Cogmind --------- Core Integrity 0/250 Matter 276/300 Energy 84/100 System Corruption 0% Temperature Cool (0) Movement Walking (120) Location -10/Mines Parts ------- > --- POWER (1) -------- (None) > --- PROPULSION (2) --- Aluminum Leg Aluminum Leg > --- UTILITY (2) ------ Medium Storage Unit Seismic Detector > --- WEAPON (2) ------- Assault Rifle Light Assault Rifle > --- INVENTORY (10) --- Light Treads Light Treads Aluminum Leg Small Laser Beam Cannon Beam Cannon Light Assault Rifle Light Assault Rifle Grenade Launcher Mining Laser Peak State ------------ > --- POWER ------------ Light Ion Engine > --- PROPULSION ------- Light Treads Light Treads > --- UTILITY ---------- Small Storage Unit Improved Terrain Scanner > --- WEAPON ----------- EM Pulse Gun EM Pulse Gun > --- INVENTORY -------- Light Ion Engine Aluminum Leg Aluminum Leg Small Laser Mining Laser [Rating: 9] Favorites ----------- Power Light Ion Engine Engine Light Ion Engine Propulsion Light Treads Treads Light Treads Leg Aluminum Leg Utility Small Storage Unit Device Improved Terrain Scanner Storage Small Storage Unit Weapon Beam Cannon Energy Gun Small Laser Energy Cannon Beam Cannon Ballistic Gun Assault Rifle Launcher Grenade Launcher Special Weapon Mining Laser Build | -11 -10 -10 ------- Run | Yrd Mat Min Slots Evolved . | . . . Power . | . . . Propulsion . | . . . Utility . | . . . Weapon . | . . . Parts Attached 24 | 8 15 1 Power 3 | 1 2 . Engine 3 | 1 2 . Core . | . . . Reactor . | . . . Propulsion 4 | 2 2 . Treads 2 | 2 . . Leg 2 | . 2 . Wheel . | . . . Hover . | . . . Flight . | . . . Utility 4 | 2 2 . Device 2 | 1 1 . Storage 2 | 1 1 . Processor . | . . . Hackware . | . . . Protection . | . . . Artifact . | . . . Weapon 13 | 3 9 1 Energy Gun 5 | 3 2 . Energy Cannon 3 | . 3 . Ballistic Gun 2 | . 1 1 Ballistic Cannon . | . . . Launcher 2 | . 2 . Special Weapon 1 | . 1 . Impact Weapon . | . . . Slashing Weapon . | . . . Piercing Weapon . | . . . Special Melee Weapon . | . . . Unidentified Prototypes . | . . . Parts Lost 7 | . 7 . Power 3 | . 3 . Propulsion 2 | . 2 . Utility 1 | . 1 . Weapon 1 | . 1 . Highest Loss Streak 7 | . 7 . To Critical Strikes . | . . . Average Slot Usage (%) 92 | . 92 . Engine 9 | . 9 . Treads 17 | . 17 . Leg 10 | . 10 . Device 11 | . 11 . Storage 14 | . 14 . Energy Gun 11 | . 11 . Energy Cannon 10 | . 10 . Ballistic Gun 4 | . 4 . Peak Build Rating 9 | 9 9 7 Average Rating 7 | 4 7 7 On Entrance 5 | . 9 7 Naked Turns . | . . . Heaviest Build 18 | 13 18 . Greatest Support 40 | 40 40 . Greatest Overweight (x) 4 | . 4 . Average Overweight (x) . | . . . Largest Inventory Capacity 10 | 8 10 10 Average Capacity 8 | 7 8 10 Most Carried 10 | 7 10 10 Average Carried 7 | 4 7 10 Final Capacity 10 | 8 10 10 Final Carried 10 | 5 10 10 Class Distribution -------------------- 100% | Mutant Dominant Class ---------------- Mutant | -10/Materials Mutant | -10/Mines Resources | -11 -10 -10 ----------- Run | Yrd Mat Min Matter Collected 483 | 280 203 . Remotely . | . . . Salvage Created 757 | 150 607 . Parts 45 | 10 35 . Haulers Intercepted 1 | . 1 . Recyclers Shooed 1 | . 1 . Parts Field Recycled . | . . . Retrieved Matter . | . . . Parts Self-Destructed . | . . . Prevented . | . . . Kills | -11 -10 -10 ------- Run | Yrd Mat Min Combat Hostiles Destroyed 14 | . 14 . Guns 2 | . 2 . Cannons 5 | . 5 . AOE 7 | . 7 . Classes Destroyed 8 | 2 6 . Builder 1 | . 1 . Tunneler 4 | 4 . . Hauler 1 | . 1 . Recycler 2 | 1 1 . Operator 1 | . 1 . Watcher 3 | . 3 . Swarmer 3 | . 3 . Grunt 11 | . 11 . Best Kill Streak 7 | 3 7 . Combat Bots Only 5 | . 5 . Max Kills in Single Turn 2 | 1 2 . Gunslinging 1 | . 1 . Exploded 2 | . 2 . Melee . | . . . Uniques/NPCs Destroyed . | . . . Combat | -11 -10 -10 -------- Run | Yrd Mat Min Hostile Shots Fired 122 | . 115 7 Missed 31 | . 30 1 Damage Taken 1174 | . 1124 50 Core 255 | . 231 24 Absorbed by Shields . | . . . Core Remaining (%) 100 | 100 . . Volleys Fired 66 | 11 54 1 Largest 2 | 1 2 2 Hottest 120 | 40 120 40 Shots Fired 107 | 11 94 2 Gun 45 | 11 32 2 Cannon 50 | . 50 . Launcher 10 | . 10 . Special 2 | . 2 . Kinetic 7 | . 5 2 Thermal 74 | 11 63 . Explosive 10 | . 10 . Electromagnetic 16 | . 16 . Robot Hit Streak 11 | 11 10 2 Robot Miss Streak 3 | . 3 1 Penetration Max . | . . . Secondary Targets 1 | . 1 . Max Gunslinging Chain 1 | . 1 . Shots Hit Robots 62 | 11 50 1 Core Hits 34 | 6 28 . Critical Kills . | . . . Critical Parts Destroyed . | . . . Critical Strikes 1 | . 1 . Corrupt 1 | . 1 . Melee Attacks . | . . . Impact . | . . . Slashing . | . . . Piercing . | . . . Sneak Attacks . | . . . Combat Hostiles . | . . . Follow-up Attacks . | . . . Damage Inflicted 1635 | 124 1501 10 Guns 401 | 124 267 10 Cannons 539 | . 539 . Explosions 679 | . 679 . Melee . | . . . Ramming 16 | . 16 . Kinetic 57 | . 47 10 Thermal 753 | 124 629 . Explosive 623 | . 623 . Electromagnetic 186 | . 186 . Impact . | . . . Slashing . | . . . Piercing . | . . . Highest Corruption . | . . . Average Corruption . | . . . Corruption Purged . | . . . Corruption Blocked . | . . . Overload Shots . | . . . Overflow Damage 7 | . 7 . Projectiles . | . . . Explosions 7 | . 7 . Melee . | . . . Knockbacks . | . . . Impact . | . . . Kinetic . | . . . Secondary . | . . . Self-Inflicted Damage 31 | . 31 . Shots 2 | . 2 . Rammed 10 | . 10 . Targets Rammed 10 | . 10 . Kicked . | . . . Crushed . | . . . Highest Temperature 386 | . 386 . Average Temperature 139 | . 139 . Received Heat Transfer 612 | . 612 . Effects 5 | . 5 . Shutdowns 1 | . 1 . Interference 4 | . 4 . Siege Activations . | . . . Robots Corrupted . | . . . Combat Hostiles . | . . . Parts Fried 1 | . 1 . Impact Corruptions . | . . . Robots Melted . | . . . Combat Hostiles . | . . . Parts Melted 1 | 1 . . Heat Transferred 1560 | 275 1285 . Parts Sabotaged . | . . . Parts Stolen . | . . . Parts Stripped . | . . . Power Chain Reactions 1 | . 1 . Alert | -11 -10 -10 ------- Run | Yrd Mat Min Peak Influence 273 | 25 273 36 Initial 21 | . 16 21 Average 103 | 9 117 32 Maximum Alert Level 1 | . 1 . Low Security (%) 79 | 100 76 100 Level 1 20 | . 23 . Level 2 . | . . . Level 3 . | . . . Level 4 . | . . . Level 5 . | . . . High Security . | . . . Max Security . | . . . Squads Dispatched 2 | . 2 . Investigation 1 | . 1 . Extermination . | . . . Reinforcement 1 | . 1 . Assault . | . . . Garrison . | . . . Intercept . | . . . Searches Triggered . | . . . Construction Impeded . | . . . Haulers Reinforced . | . . . Active Scanning Responses . | . . . Cargo Convoy Interrupts . | . . . Stealth | -11 -10 -10 --------- Run | Yrd Mat Min Distress Signals 1 | . 1 . Communications Jammed . | . . . Distress Signals . | . . . Times Spotted 21 | . 18 3 Peak Tracking Total 5 | . 5 3 Tactical Retreats . | . . . Traps | -11 -10 -10 ------- Run | Yrd Mat Min Traps Triggered 1 | . 1 . Indirectly . | . . . Trap Hack Attempts . | . . . Triggered . | . . . Disarmed . | . . . Reprogrammed . | . . . Reused . | . . . Traps Extracted . | . . . Installed . | . . . Triggered . | . . . Machines | -11 -10 -10 ---------- Run | Yrd Mat Min Machines Disabled . | . . . Max in Single Turn . | . . . Machines Repaired . | . . . Machines Dismantled . | . . . Machines Sabotaged . | . . . Overloaded Fab Kills . | . . . Hacking | -11 -10 -10 --------- Run | Yrd Mat Min Machines Accessed 7 | . 7 . Terminals 6 | . 6 . Fabricators . | . . . Repair Stations . | . . . Recycling Units 1 | . 1 . Scanalyzers . | . . . Garrison Access . | . . . Total Hacks 22 | . 22 . Successful 10 | . 10 . Failed 12 | . 12 . Catastrophic 1 | . 1 . Database Lockouts . | . . . Manual 9 | . 9 . Terminals 19 | . 19 . Fabricators . | . . . Repair Stations . | . . . Recycling Units 3 | . 3 . Scanalyzers . | . . . Garrison Access . | . . . Terminal Hacks 7 | . 7 . Record 1 | . 1 . Robot Analysis 1 | . 1 . Terminal Index 1 | . 1 . Locate Traps 1 | . 1 . Hauler Manifests 1 | . 1 . Zone Layout 2 | . 2 . Fabricator Hacks . | . . . Repair Station Hacks . | . . . Recycling Unit Hacks 2 | . 2 . Report Inventory 1 | . 1 . Retrieve Components 1 | . 1 . Scanalyzer . | . . . Garrison Access Hacks . | . . . Unauthorized Hacks 1 | . 1 . Terminals 1 | . 1 . Botnet 1 | . 1 . Fabricators . | . . . Repair Stations . | . . . Recycling Units . | . . . Scanalyzers . | . . . Garrison Access . | . . . Data Cores Recovered . | . . . Used . | . . . Hacking Detections 6 | . 6 . Full Trace Events 1 | . 1 . Feedback Events . | . . . Feedback Blocked . | . . . Robot Schematics Acquired . | . . . Robots Built . | . . . Authchips . | . . . Time . | . . . Total Robot Build Rating . | . . . Part Schematics Acquired . | . . . Parts Built . | . . . Authchips . | . . . Time . | . . . Total Part Build Rating . | . . . Parts Repaired . | . . . Time . | . . . Parts Recycled . | . . . Recycled Matter . | . . . Retrieved Matter . | . . . Retrieved Components 2 | . 2 . Parts Scanalyzed . | . . . Part Schematics Acquired . | . . . Parts Damaged . | . . . Bothacking | -11 -10 -10 ------------ Run | Yrd Mat Min Used RIF Installer . | . . . Robots Hacked . | . . . Non-combat . | . . . Combat . | . . . Robot Hacks Applied . | . . . Relay Couplers Released . | . . . Fabnet Peak Effective % . | . . . Robots Rewired . | . . . Allies Hacked . | . . . Hacks Repelled . | . . . Allies | -11 -10 -10 -------- Run | Yrd Mat Min Total Allies . | . . . Largest Group . | . . . Highest-Rated Group . | . . . Highest-Rated Ally . | . . . Total Orders . | . . . Ally Attacks . | . . . Total Damage . | . . . Kills . | . . . Allies Corrupted . | . . . Allies Melted . | . . . Intel | -11 -10 -10 ------- Run | Yrd Mat Min Robot Analysis Total 1 | . 1 . Derelict Logs Recovered . | . . . Drone Launches . | . . . Drone Recoveries . | . . . Exploration | -11 -10 -10 ------------- Run | Yrd Mat Min Turns Passed 1095 | 136 955 4 Spaces Moved 574 | 63 511 . Core 5 | 3 2 . Treads 328 | 60 268 . Legs 241 | . 241 . Wheels . | . . . Hover . | . . . Flight . | . . . Fastest Speed 50 | 50 120 . Average Speed 142 | 154 141 . Slowest Speed 250 | 160 250 . Overloaded Moves . | . . . Propulsion Burnouts . | . . . Robots Hopped . | . . . Cave-ins Triggered . | . . . Exploration Rate (%) 31 | 5 86 4 Regions Visited 2 Branch Regions 1 Pre-discovered Areas . | . . . Known Exits Taken . | . . . Unknown Exits Taken 2 | 1 1 . Scrap Searched . | . . . Spaces Dug 2 | . 2 . Terrain Destroyed 60 | . 60 . Melee . | . . . Projectile 2 | . 2 . AOE 58 | . 58 . Terrain Rammed . | . . . Walls Destroyed . | . . . Machines Disabled . | . . . Actions | -11 -10 -10 --------- Run | Yrd Mat Min Total 728 | 88 638 2 Wait 32 | . 32 . Move 572 | 62 510 . Hop . | . . . Pick Up 19 | 7 12 . Fast Attach 9 | 5 4 . Attach 7 | 2 5 . Detach . | . . . Swap 8 | 1 6 1 Drop 5 | . 5 . Fire 66 | 11 54 1 Melee . | . . . Ram . | . . . Kick . | . . . Crush 10 | . 10 . Escape Stasis . | . . . Rewire . | . . . Trap . | . . . Miscellaneous . | . . . Route ------- -11/Scrapyard -10/Materials (discovered 4 exits: [*Mat x3] / [*Min]) -10/Mines History --------- Turn | Location | Event 25 | -11/Scrapyard | Discovered new exit (range 15) 137 | -11/Scrapyard | Entered Materials 308 | -10/Materials | Build established: Mutant 326 | -10/Materials | Discovered new exit (range 6) 479 | -10/Materials | Discovered new exit (range 12) 532 | -10/Materials | Discovered new exit (range 8) 730 | -10/Materials | Core integrity fell below 50% 748 | -10/Materials | Core integrity fell below 20% 767 | -10/Materials | Discovered new exit (range 10) 790 | -10/Materials | Lost 7 parts (3p2n1u1w) 1092 | -10/Materials | Entered Mines 1096 | -10/Mines | Destroyed by S-10 Pest with Light Assault Rifle Last Messages --------------- 00820_ Acquired Lgt. Assault Rifle. 00823_ Acquired Lgt. Treads. 00823_ K-01 Serf collects debris. 00826_ Acquired Lgt. Assault Rifle. 00855_ Connecting with Terminal... 00873_ Dropped Sml. Storage Unit. 00873_ Acquired Seismic Detector. 00876_ Dropped Aluminum Leg. 00876_ Acquired Aluminum Leg. 00903_ Acquired 10 matter. 00907_ The unstable cave ceiling collapses. 00907_ K-01 Serf collects debris. 00950_ Dropped Beam Cannon. 00950_ Acquired Beam Cannon. 01007_ U-05 Engineer lays Concrete. 01026_ U-05 Engineer builds a Wall. 01038_ U-05 Engineer lays Concrete. 01050_ U-05 Engineer builds a Wall. LOCATION=UNKNOWN GOAL=ESCAPE Map ----- +----------------------------------------------------+ | ??????????????????????????????? | | ??????????????????????????????? | | ??????????????????????????????? | | ??????????????????????????????? | | ??????????????????????????????? | | ??????????????????????????????? | | ??????????????????????????????? | | ??????????????????????????????? | | ??????????????????????????????? | | ??????????????????????????????? | | ??????????????????????????????? | | ??????????????????????????????? | | ??????????????????????????????? | | ??????????????????????????????? | | ??????????????????????????????? | | ??????????????????????????????? | | ?##########???????????????????? | | ?# #???????????????????? | | ?# """ #???????????????????? | | ?# """ #???????????????????? | | ?# """ #???????????????????? | | ?# ###?????????????????? | | ?# ??????????????????? | | ?# s#???????????????????? | | ?# #???????????????????? | | ?# @ #???????????????????? | | ?# s s #???????????????????? | | ?##########???????????????????? | | ??????????????????????????????? | | ??????????????????????????????? | | ??????????????????????????????? | | ??????????????????????????????? | | ??????????????????????????????? | | ??????????????????????????????? | | ??????????????????????????????? | | ??????????????????????????????? | | ??????????????????????????????? | | ??????????????????????????????? | | | | | | | | | | | | | | | | | | | | | | | | | +----------------------------------------------------+ Best States ------------- Heat Dissipation 25 Energy Generation 10 Energy Capacity 250 Matter Stores 300 Matter Capacity 300 Sight Range 16 Terrain Scan Range 16 Terrain Scan Density 10 Evasion (%) 55 Recoil Reduction 2 Item Schematics ----------------- None Robot Schematics ------------------ None Fabricated ------------ Nothing Alien Tech Used ----------------- None Achievements -------------- None Challenges ------------ None Game ------ Seed SeismicImprinterScythe Manual? 0 Play Time 00:10:32 Cumulative 212.3 hours Start 2024.12.04 @ 19:03:29 End 2024.12.04 @ 19:14:31 Sessions 1 Manual Loads 0 Difficulty Rogue Special Mode None Game No. 106 Rogue 85 Adventurer 21 Explorer 0 Win Type - Total 10 Types 7/0/2/1/0/0/0/0/0 Lore% 45 Gallery% 68 Achievement% 59 Wizard Run 0 Options --------- Layout 1 ASCII 0 Keyboard 0 Movement Mouse Keybinds 0 Fullscreen 2 Font 32/SmallcapsGlow Map View 77x35 Zoom Use 0% Tactical HUD 1 Map Filters NONE Filters NONE Steam 1 RUN: efb7ca3e-85d1-4385-8d5b-d9e0b4bc5632